[Event "EYCC Open-U10 2019"]
[Site "Bratislava"]
[Date "2019.08.06"]
[Round "5.17"]
[White "Royal, Shreyas"]
[Black "Perossa, Nicolas"]
[Result "1-0"]
[ECO "A61"]
[WhiteElo "1996"]
[BlackElo "1661"]
[Annotator "NA"]
[PlyCount "61"]
[EventDate "2019.08.02"]
[EventType "swiss"]
[EventCountry "SVK"]
[SourceTitle "playchess.com"]
[Source "ChessBase"]
[SourceQuality "1"]
[TimeControl "40/5400+30:1800+30"]

1. d4 {[%emt 0:00:00]} Nf6 {[%emt 0:00:00]} 2. c4 {[%emt 0:00:10]} c5 {[%emt 0:00:00]} 3. d5 {[%emt 0:00:32]} e6 {[%emt 0:00:00]} 4. Nc3 {[%emt 0:00:46]} exd5 {[%emt 0:00:00]} 5. cxd5 {[%emt 0:00:58]} d6 {[%emt 0:00:00]} 6. Nf3 {[%emt 0:01:36]} g6 {[%emt 0:00:19]} 7. Bf4 {[%emt 0:01:10]} a6 {[%emt 0:01:53]} 8. a4 {[%emt 0:01:34]} Bg7 {[%emt 0:01:35]} 9. h3 {[%emt 0:00:50]} h6 {[%emt 0:34:22]} 10. e3 {[%emt 0:06:21]} Bf5 {[%emt 0:13:21]} 11. Bd3 {[%emt 0:03:43]} Bxd3 {[%emt 0:03:24]} 12. Qxd3 {[%emt 0:00:23]} Qe7 {[%emt 0:04:15]} 13. O-O {[%emt 0:01:17]} O-O {[%emt 0:00:16]} 14. Nd2 {[%emt 0:00:44]} Nh5 {[%emt 0:20:28]} 15. Bh2 {[%emt 0:00:47]} Be5 {[%emt 0:03:57]} 16. Bxe5 {[%emt 0:00:23]} Qxe5 {[%emt 0:00:12]} 17. Nc4 {[%emt 0:00:15]} Qe7 {[%emt 0:00:06]} 18. e4 {[%emt 0:10:00]} Nf4 {[%emt 0:03:02]} 19. Qf3 {[%emt 0:01:58]} g5 {[%emt 0:02:23]} 20. Ne2 Nxe2+ 21. Qxe2 {[%emt 0:01:57]} Nd7 {[%emt 0:00:41]} 22. a5 {[%emt 0:00:38]} Ne5 {[%emt 0:00:55]} 23. Ne3 {[%emt 0:00:22]} Nd7 {[%emt 0:02:51]} 24. Nf5 {[%emt 0:00:08]} Qf6 {[%emt 0:00:08]} 25. f4 {[%emt 0:00:45]} Rfe8 {[%emt 0:04:23]} 26. Qh5 {[%emt 0:00:24]} Qg6 {[%emt 0:01:25]} 27. Qxg6+ {[%emt 0:00:38]} fxg6 {[%emt 0:00:01]} 28. Nxd6 {[%emt 0:00:32]} Re7 {[%emt 0:00:15]} 29. fxg5 {[%emt 0:00:55]} hxg5 {[%emt 0:01:09]} 30. Nxb7 {[%emt 0:01:33]} Rxe4 {[%emt 0:00:21]} 31. Rac1 1-0

[Event "EYCC Open-U10 2019"]
[Site "Bratislava"]
[Date "2019.08.06"]
[Round "5.18"]
[White "Haubold, Sebastian Marcel"]
[Black "Salinas Tomas, Daniel"]
[Result "0-1"]
[ECO "B07"]
[WhiteElo "1455"]
[BlackElo "2001"]
[Annotator "NA"]
[PlyCount "78"]
[EventDate "2019.08.02"]
[EventType "swiss"]
[EventCountry "SVK"]
[SourceTitle "playchess.com"]
[Source "ChessBase"]
[SourceQuality "1"]
[TimeControl "40/5400+30:1800+30"]

1. e4 {[%emt 0:00:00]} d6 {[%emt 0:00:00]} 2. d4 {[%emt 0:00:00]} Nf6 {[%emt 0:00:00]} 3. Nc3 {[%emt 0:01:23]} Nbd7 {[%emt 0:00:00]} 4. Nf3 {[%emt 0:00:39]} e5 {[%emt 0:00:00]} 5. dxe5 {[%emt 0:01:51]} dxe5 {[%emt 0:00:04]} 6. a3 Be7 7. Bc4 {[%emt 0:02:56]} h6 {[%emt 0:02:45]} 8. O-O {[%emt 0:02:06]} O-O {[%emt 0:00:49]} 9. h3 {[%emt 0:05:03]} c6 {[%emt 0:01:23]} 10. Be3 {[%emt 0:09:17]} b5 {[%emt 0:01:00]} 11. Bb3 {[%emt 0:07:03]} a5 {[%emt 0:07:45]} 12. Nd2 {[%emt 0:05:36]} Ba6 {[%emt 0:03:29]} 13. Re1 {[%emt 0:03:43]} Qc7 {[%emt 0:04:53]} 14. Qf3 {[%emt 0:05:07]} Bc5 {[%emt 0:05:23]} 15. Qg3 {[%emt 0:01:50]} Bxe3 {[%emt 0:05:39]} 16. Rxe3 {[%emt 0:06:16]} Nc5 {[%emt 0:01:17]} 17. Rf3 {[%emt 0:04:54]} Qe7 18. Re1 b4 {[%emt 0:04:59]} 19. axb4 {[%emt 0:00:56]} axb4 {[%emt 0:00:06]} 20. Ncb1 {[%emt 0:01:11]} Nxb3 {[%emt 0:18:11]} 21. cxb3 {[%emt 0:07:47]} Rfe8 {[%emt 0:01:48]} 22. Ree3 Rad8 {[%emt 0:02:36]} 23. h4 {[%emt 0:12:44]} Rd4 {[%emt 0:03:45]} 24. Re1 {[%emt 0:05:57]} g6 25. Rfe3 Nh5 {[%emt 0:03:04]} 26. Qg4 {[%emt 0:06:00]} Red8 27. Nf3 {[%emt 0:04:17]} Bc8 {[%emt 0:00:00]} 28. Nxd4 {[%emt 0:00:56]} exd4 {[%emt 0:00:00]} 29. Qe2 {[%emt 0:00:26]} dxe3 {[%emt 0:00:00]} 30. Qxe3 Qxh4 {[%emt 0:00:54]} 31. Qxh6 {[%emt 0:01:24]} Qf4 {[%emt 0:00:30]} 32. Qxf4 {[%emt 0:00:13]} Nxf4 {[%emt 0:00:01]} 33. g3 {[%emt 0:00:20]} Ne6 {[%emt 0:00:41]} 34. Kg2 {[%emt 0:00:12]} Rd3 {[%emt 0:00:37]} 35. Re3 {[%emt 0:00:09]} Rd1 {[%emt 0:00:35]} 36. f4 {[%emt 0:00:27]} Rxb1 {[%emt 0:00:37]} 37. f5 {[%emt 0:00:07]} Rxb2+ {[%emt 0:00:26]} 38. Kf1 {[%emt 0:00:30]} Nd4 {[%emt 0:00:30]} 39. Rd3 {[%emt 0:00:07]} Ba6 {[%emt 0:00:35]} 0-1

[Event "EYCC Open-U10 2019"]
[Site "Bratislava"]
[Date "2019.08.06"]
[Round "5.19"]
[White "Asikainen, Eeli"]
[Black "Povshednyi, Ivan"]
[Result "1-0"]
[ECO "B22"]
[WhiteElo "1447"]
[BlackElo "1872"]
[Annotator "NA"]
[PlyCount "129"]
[EventDate "2019.08.02"]
[EventType "swiss"]
[EventCountry "SVK"]
[SourceTitle "playchess.com"]
[Source "ChessBase"]
[SourceQuality "1"]
[TimeControl "40/5400+30:1800+30"]

1. e4 {[%emt 0:00:00]} c5 {[%emt 0:00:00]} 2. c3 {[%emt 0:00:00]} d5 {[%emt 0:00:00]} 3. exd5 {[%emt 0:00:00]} Qxd5 {[%emt 0:00:03]} 4. d4 {[%emt 0:00:00]} Nf6 {[%emt 0:00:12]} 5. Nf3 {[%emt 0:00:24]} e6 {[%emt 0:00:23]} 6. Na3 {[%emt 0:00:25]} a6 {[%emt 0:01:31]} 7. Nc4 {[%emt 0:00:25]} Qd8 {[%emt 0:02:44]} 8. Bd3 {[%emt 0:01:10]} Be7 {[%emt 0:01:19]} 9. O-O {[%emt 0:00:25]} O-O {[%emt 0:00:13]} 10. Bc2 {[%emt 0:01:16]} cxd4 11. cxd4 {[%emt 0:00:13]} Nc6 {[%emt 0:10:18]} 12. a3 {[%emt 0:01:19]} h6 {[%emt 0:13:24]} 13. Qd3 {[%emt 0:02:25]} b5 {[%emt 0:05:21]} 14. Ne3 {[%emt 0:03:02]} g6 {[%emt 0:06:08]} 15. Nd1 {[%emt 0:06:03]} Kg7 {[%emt 0:07:09]} 16. Be3 {[%emt 0:04:40]} Bb7 {[%emt 0:03:01]} 17. Nh4 {[%emt 0:05:14]} Na5 {[%emt 0:13:27]} 18. Nc3 {[%emt 0:11:15]} Qe8 {[%emt 0:06:53]} 19. Qd2 {[%emt 0:06:41]} Ng4 {[%emt 0:01:55]} 20. Nf3 {[%emt 0:01:15]} Nc4 {[%emt 0:02:23]} 21. Qc1 {[%emt 0:01:14]} Rc8 {[%emt 0:02:22]} 22. h3 {[%emt 0:01:55]} Ngxe3 {[%emt 0:00:58]} 23. fxe3 {[%emt 0:00:42]} Nxa3 {[%emt 0:01:47]} 24. Bd3 {[%emt 0:02:57]} b4 {[%emt 0:01:30]} 25. bxa3 {[%emt 0:00:40]} Rxc3 {[%emt 0:00:07]} 26. Qb1 {[%emt 0:00:30]} b3 {[%emt 0:00:52]} 27. Ne5 {[%emt 0:00:52]} Bg5 {[%emt 0:02:13]} 28. Nc4 {[%emt 0:02:39]} Qc6 {[%emt 0:00:41]} 29. Qb2 {[%emt 0:03:07]} Rc2 {[%emt 0:00:13]} 30. d5+ {[%emt 0:00:29]} Rxb2 {[%emt 0:06:16]} 31. dxc6 {[%emt 0:01:39]} Bxc6 {[%emt 0:00:20]} 32. Nxb2 {[%emt 0:00:24]} Bxe3+ {[%emt 0:00:03]} 33. Kh2 {[%emt 0:01:04]} Bd4 {[%emt 0:01:01]} 34. Rab1 {[%emt 0:00:16]} Be5+ {[%emt 0:01:13]} 35. Kh1 {[%emt 0:00:37]} Rd8 {[%emt 0:01:21]} 36. Nc4 {[%emt 0:03:42]} Bc7 {[%emt 0:01:01]} 37. Rxb3 {[%emt 0:01:10]} e5 {[%emt 0:01:10]} 38. Ne3 {[%emt 0:01:08]} Ba4 {[%emt 0:02:41]} 39. Rb7 {[%emt 0:01:49]} Rd7 {[%emt 0:03:29]} 40. Nd5 {[%emt 0:00:00]} Bd8 {[%emt 0:00:00]} 41. Rxd7 {[%emt 0:02:46]} Bxd7 {[%emt 0:03:21]} 42. Bxa6 {[%emt 0:00:16]} Be6 {[%emt 0:00:49]} 43. Rd1 {[%emt 0:01:09]} Ba5 {[%emt 0:00:26]} 44. Ne3 {[%emt 0:01:14]} Bc3 {[%emt 0:01:25]} 45. Bc4 {[%emt 0:00:39]} Bc8 {[%emt 0:00:31]} 46. Rd8 {[%emt 0:00:28]} Bb7 {[%emt 0:00:31]} 47. Rd7 {[%emt 0:00:20]} Be4 {[%emt 0:00:15]} 48. Rxf7+ {[%emt 0:00:23]} Kh8 {[%emt 0:00:08]} 49. Nd5 {[%emt 0:00:38]} Bxd5 {[%emt 0:00:45]} 50. Bxd5 Bd4 51. a4 {[%emt 0:00:33]} g5 {[%emt 0:00:07]} 52. a5 {[%emt 0:00:08]} h5 {[%emt 0:00:03]} 53. a6 {[%emt 0:00:42]} g4 {[%emt 0:00:04]} 54. hxg4 {[%emt 0:00:35]} hxg4 {[%emt 0:00:06]} 55. a7 {[%emt 0:00:36]} Bxa7 {[%emt 0:00:07]} 56. Rxa7 {[%emt 0:00:11]} g3 {[%emt 0:00:02]} 57. Ra3 {[%emt 0:00:18]} e4 {[%emt 0:00:04]} 58. Bxe4 {[%emt 0:00:10]} Kg8 {[%emt 0:00:05]} 59. Rxg3+ {[%emt 0:00:20]} Kh8 {[%emt 0:00:07]} 60. Rf3 {[%emt 0:00:11]} Kg8 {[%emt 0:00:05]} 61. g4 {[%emt 0:00:19]} Kg7 {[%emt 0:00:01]} 62. g5 {[%emt 0:00:14]} Kg8 {[%emt 0:00:03]} 63. g6 {[%emt 0:00:12]} Kg7 {[%emt 0:00:03]} 64. Rf7+ {[%emt 0:00:10]} Kg8 {[%emt 0:00:09]} 65. Bd5 {[%emt 0:00:11]} 1-0

[Event "EYCC Open-U10 2019"]
[Site "Bratislava"]
[Date "2019.08.06"]
[Round "5.20"]
[White "Helms, Finn"]
[Black "Sowinski, Pawel"]
[Result "1-0"]
[ECO "A20"]
[WhiteElo "1787"]
[BlackElo "1644"]
[Annotator "NA"]
[PlyCount "125"]
[EventDate "2019.08.02"]
[EventType "swiss"]
[EventCountry "SVK"]
[SourceTitle "playchess.com"]
[Source "ChessBase"]
[SourceQuality "1"]
[TimeControl "40/5400+30:1800+30"]

1. c4 {[%emt 0:00:00]} e5 {[%emt 0:00:00]} 2. g3 {[%emt 0:00:00]} Nf6 {[%emt 0:00:00]} 3. Bg2 {[%emt 0:00:00]} d5 {[%emt 0:00:11]} 4. cxd5 {[%emt 0:00:00]} Nxd5 {[%emt 0:00:11]} 5. Nc3 {[%emt 0:00:05]} Nb6 {[%emt 0:00:14]} 6. Nf3 {[%emt 0:00:19]} Nc6 {[%emt 0:00:12]} 7. O-O {[%emt 0:00:23]} Be7 {[%emt 0:00:08]} 8. d3 {[%emt 0:00:13]} O-O {[%emt 0:00:18]} 9. a3 {[%emt 0:00:11]} Re8 {[%emt 0:00:16]} 10. b4 {[%emt 0:00:35]} Be6 {[%emt 0:02:50]} 11. Bb2 {[%emt 0:01:33]} a6 {[%emt 0:00:53]} 12. Ne4 {[%emt 0:08:51]} f6 {[%emt 0:03:06]} 13. Rc1 {[%emt 0:01:43]} Qd7 {[%emt 0:07:41]} 14. Re1 {[%emt 0:03:27]} a5 {[%emt 0:08:43]} 15. b5 {[%emt 0:05:53]} Na7 {[%emt 0:01:27]} 16. a4 {[%emt 0:05:43]} c6 {[%emt 0:00:46]} 17. bxc6 {[%emt 0:02:16]} Nxc6 {[%emt 0:00:58]} 18. Nc5 {[%emt 0:02:50]} Bxc5 {[%emt 0:01:37]} 19. Rxc5 {[%emt 0:00:11]} Qd6 {[%emt 0:04:31]} 20. Rb5 {[%emt 0:17:03]} Nb4 {[%emt 0:08:02]} 21. Nd2 {[%emt 0:07:41]} Qc7 {[%emt 0:13:53]} 22. Ne4 {[%emt 0:05:27]} Bd7 {[%emt 0:01:30]} 23. Rc5 {[%emt 0:01:37]} Qb8 {[%emt 0:02:02]} 24. Nc3 {[%emt 0:03:03]} Qd6 {[%emt 0:03:36]} 25. Ne4 {[%emt 0:00:29]} Qf8 {[%emt 0:01:00]} 26. Qb3+ {[%emt 0:00:44]} Kh8 {[%emt 0:02:00]} 27. Ra1 {[%emt 0:05:29]} Bc6 28. Rcc1 {[%emt 0:02:40]} Rec8 {[%emt 0:15:47]} 29. d4 {[%emt 0:09:02]} Bd5 {[%emt 0:03:15]} 30. Qd1 {[%emt 0:01:50]} Nc4 {[%emt 0:01:35]} 31. Bc3 {[%emt 0:01:01]} f5 {[%emt 0:02:01]} 32. Bxb4 {[%emt 0:01:58]} Qxb4 {[%emt 0:01:48]} 33. Nc5 {[%emt 0:00:48]} Bxg2 {[%emt 0:00:21]} 34. Kxg2 {[%emt 0:01:43]} Nb2 {[%emt 0:01:10]} 35. Qb3 {[%emt 0:03:26]} Qxb3 {[%emt 0:01:40]} 36. Nxb3 {[%emt 0:00:01]} exd4 {[%emt 0:00:51]} 37. Nxa5 {[%emt 0:01:35]} b6 {[%emt 0:09:52]} 38. Rxc8+ {[%emt 0:01:18]} Rxc8 {[%emt 0:00:16]} 39. Nb3 {[%emt 0:00:18]} Ra8 {[%emt 0:02:22]} 40. Nxd4 {[%emt 0:00:00]} Rxa4 {[%emt 0:00:00]} 41. Rxa4 {[%emt 0:02:30]} Nxa4 {[%emt 0:00:15]} 42. Nxf5 {[%emt 0:00:28]} g6 {[%emt 0:00:41]} 43. Nd4 {[%emt 0:00:49]} Kg7 {[%emt 0:00:14]} 44. e4 {[%emt 0:00:58]} Nc3 {[%emt 0:00:37]} 45. e5 {[%emt 0:00:20]} Nd5 {[%emt 0:03:24]} 46. f4 {[%emt 0:00:50]} h6 {[%emt 0:01:07]} 47. Kf3 {[%emt 0:00:14]} Kf7 {[%emt 0:01:43]} 48. Ke4 {[%emt 0:00:43]} Nc3+ {[%emt 0:00:05]} 49. Kd3 {[%emt 0:00:22]} Nd5 {[%emt 0:00:31]} 50. Nb5 {[%emt 0:00:17]} Ke6 {[%emt 0:01:58]} 51. Ke4 {[%emt 0:00:16]} Ne7 {[%emt 0:03:17]} 52. g4 {[%emt 0:01:21]} Kd7 {[%emt 0:04:14]} 53. Nd4 {[%emt 0:00:50]} Nc8 {[%emt 0:01:13]} 54. f5 {[%emt 0:00:19]} Ne7 {[%emt 0:02:02]} 55. f6 {[%emt 0:00:35]} Nc8 {[%emt 0:00:23]} 56. Kd5 {[%emt 0:00:17]} Na7 {[%emt 0:00:13]} 57. e6+ {[%emt 0:00:10]} Ke8 {[%emt 0:00:08]} 58. Nc6 {[%emt 0:00:37]} Nc8 {[%emt 0:00:15]} 59. e7 {[%emt 0:00:17]} Kf7 {[%emt 0:00:34]} 60. Nd8+ {[%emt 0:00:07]} Ke8 {[%emt 0:00:05]} 61. Ke6 {[%emt 0:00:25]} Nxe7 {[%emt 0:00:04]} 62. fxe7 {[%emt 0:00:07]} b5 {[%emt 0:01:46]} 63. Nf7 {[%emt 0:01:18]} 1-0

[Event "EYCC Open-U10 2019"]
[Site "Bratislava"]
[Date "2019.08.06"]
[Round "5.21"]
[White "Deveci, Huseyin Said"]
[Black "Shearsby, Jude"]
[Result "1/2-1/2"]
[ECO "B00"]
[WhiteElo "1558"]
[BlackElo "1486"]
[Annotator "NA"]
[PlyCount "67"]
[EventDate "2019.08.02"]
[EventType "swiss"]
[EventCountry "SVK"]
[SourceTitle "playchess.com"]
[Source "ChessBase"]
[SourceQuality "1"]
[TimeControl "40/5400+30:1800+30"]

1. e4 {[%emt 0:00:00]} Nc6 {[%emt 0:00:00]} 2. d4 {[%emt 0:00:00]} d5 {[%emt 0:00:00]} 3. Nc3 {[%emt 0:00:00]} Nf6 {[%emt 0:00:00]} 4. e5 {[%emt 0:00:00]} Nd7 {[%emt 0:00:00]} 5. Bb5 {[%emt 0:00:00]} e6 {[%emt 0:00:20]} 6. f4 {[%emt 0:00:00]} a6 {[%emt 0:00:19]} 7. Bxc6 {[%emt 0:00:02]} bxc6 {[%emt 0:00:06]} 8. Nf3 {[%emt 0:00:04]} c5 {[%emt 0:00:22]} 9. f5 {[%emt 0:00:19]} cxd4 {[%emt 0:01:04]} 10. fxe6 {[%emt 0:00:05]} fxe6 {[%emt 0:00:05]} 11. Bg5 {[%emt 0:00:05]} Be7 {[%emt 0:00:15]} 12. Nxd4 {[%emt 0:00:13]} Nxe5 {[%emt 0:02:48]} 13. Bxe7 {[%emt 0:28:35]} Qxe7 {[%emt 0:00:34]} 14. O-O {[%emt 0:01:27]} Nf7 {[%emt 0:02:07]} 15. Nxd5 {[%emt 0:09:25]} Qd6 {[%emt 0:11:43]} 16. Qf3 {[%emt 0:12:54]} O-O {[%emt 0:05:11]} 17. Ne7+ {[%emt 0:13:34]} Qxe7 {[%emt 0:00:36]} 18. Qxa8 {[%emt 0:00:10]} Qc5 {[%emt 0:00:24]} 19. c3 {[%emt 0:01:26]} e5 20. Rxf7 {[%emt 0:02:50]} Kxf7 {[%emt 0:26:56]} 21. Rf1+ {[%emt 0:00:12]} Kg8 {[%emt 0:00:04]} 22. Rxf8+ {[%emt 0:00:04]} Qxf8 {[%emt 0:00:06]} 23. Qd5+ {[%emt 0:00:04]} Qf7 {[%emt 0:03:17]} 24. Qxe5 {[%emt 0:01:12]} Kf8 {[%emt 0:00:29]} 25. b3 {[%emt 0:04:09]} Qe7 {[%emt 0:03:06]} 26. Qxe7+ {[%emt 0:04:43]} Kxe7 {[%emt 0:00:07]} 27. Kf2 {[%emt 0:00:02]} Bb7 {[%emt 0:00:41]} 28. g3 {[%emt 0:00:27]} Kf6 {[%emt 0:00:31]} 29. h4 {[%emt 0:01:21]} c5 {[%emt 0:00:52]} 30. Nf3 {[%emt 0:01:40]} Kf5 {[%emt 0:01:32]} 31. Nd2 {[%emt 0:00:37]} Bd5 {[%emt 0:00:41]} 32. c4 {[%emt 0:02:44]} Bc6 {[%emt 0:00:21]} 33. a3 {[%emt 0:01:57]} a5 {[%emt 0:00:42]} 34. a4 {[%emt 0:03:08]} 1/2-1/2

[Event "EYCC Open-U10 2019"]
[Site "Bratislava"]
[Date "2019.08.06"]
[Round "5.22"]
[White "La Barbera, Manfredi"]
[Black "Csernyik, Mark"]
[Result "0-1"]
[ECO "B01"]
[WhiteElo "1479"]
[BlackElo "1648"]
[Annotator "NA"]
[PlyCount "91"]
[EventDate "2019.08.02"]
[EventType "swiss"]
[EventCountry "SVK"]
[SourceTitle "playchess.com"]
[Source "ChessBase"]
[SourceQuality "1"]
[TimeControl "40/5400+30:1800+30"]

1. e4 {[%emt 0:00:00]} d5 {[%emt 0:00:17]} 2. exd5 {[%emt 0:00:00]} Qxd5 {[%emt 0:00:15]} 3. Nc3 {[%emt 0:00:00]} Qd6 {[%emt 0:00:08]} 4. Nf3 {[%emt 0:00:04]} Nf6 {[%emt 0:00:06]} 5. d4 {[%emt 0:00:06]} a6 {[%emt 0:00:06]} 6. g3 {[%emt 0:00:04]} Bg4 {[%emt 0:00:32]} 7. Bg2 {[%emt 0:00:21]} Nc6 {[%emt 0:00:27]} 8. O-O {[%emt 0:08:31]} O-O-O {[%emt 0:00:57]} 9. Bf4 {[%emt 0:11:26]} Qb4 {[%emt 0:03:14]} 10. Qd3 {[%emt 0:13:25]} Bxf3 {[%emt 0:10:29]} 11. Bxf3 {[%emt 0:04:53]} Nxd4 {[%emt 0:00:52]} 12. Rfd1 {[%emt 0:02:29]} Ne6 {[%emt 0:03:00]} 13. Nd5 {[%emt 0:09:57]} Qc5 {[%emt 0:15:41]} 14. Be3 {[%emt 0:02:10]} Qd6 {[%emt 0:02:41]} 15. Qc3 {[%emt 0:01:32]} Nxd5 {[%emt 0:11:32]} 16. Rxd5 {[%emt 0:01:27]} Qxd5 {[%emt 0:00:17]} 17. Bxd5 {[%emt 0:00:06]} Rxd5 {[%emt 0:00:07]} 18. Qc4 {[%emt 0:02:33]} Rd6 {[%emt 0:00:27]} 19. Qg4 {[%emt 0:01:33]} g6 {[%emt 0:01:15]} 20. Rd1 {[%emt 0:01:32]} h5 {[%emt 0:00:34]} 21. Qf3 {[%emt 0:00:22]} Rxd1+ {[%emt 0:00:40]} 22. Qxd1 {[%emt 0:00:11]} Bg7 {[%emt 0:00:15]} 23. c3 {[%emt 0:00:24]} Rd8 {[%emt 0:00:51]} 24. Qf3 {[%emt 0:00:47]} Bf6 {[%emt 0:00:10]} 25. h4 {[%emt 0:00:30]} Ng7 {[%emt 0:02:16]} 26. Bg5 {[%emt 0:03:43]} Bxg5 {[%emt 0:01:43]} 27. hxg5 {[%emt 0:00:12]} Nf5 {[%emt 0:00:09]} 28. Qe2 {[%emt 0:02:51]} e6 {[%emt 0:00:22]} 29. Kf1 {[%emt 0:01:35]} Rd5 {[%emt 0:00:43]} 30. Ke1 {[%emt 0:02:12]} Nd6 {[%emt 0:01:29]} 31. f4 {[%emt 0:01:48]} Nf5 {[%emt 0:00:56]} 32. Qf3 {[%emt 0:04:28]} Ra5 {[%emt 0:00:50]} 33. a3 {[%emt 0:00:42]} Rb5 {[%emt 0:02:35]} 34. Qf2 {[%emt 0:01:48]} Rd5 {[%emt 0:00:36]} 35. Ke2 {[%emt 0:02:05]} Nd6 {[%emt 0:01:35]} 36. b3 {[%emt 0:06:17]} Rd2+ {[%emt 0:00:16]} 37. Kxd2 {[%emt 0:00:35]} Ne4+ {[%emt 0:00:12]} 38. Ke3 {[%emt 0:00:06]} Nxf2 {[%emt 0:00:16]} 39. Kxf2 {[%emt 0:00:05]} Kd7 {[%emt 0:00:12]} 40. Ke3 {[%emt 0:00:00]} c5 {[%emt 0:00:00]} 41. c4 {[%emt 0:00:18]} b5 {[%emt 0:00:23]} 42. cxb5 {[%emt 0:00:22]} axb5 {[%emt 0:00:08]} 43. a4 {[%emt 0:00:17]} c4 {[%emt 0:00:37]} 44. bxc4 {[%emt 0:00:05]} bxa4 {[%emt 0:00:12]} 45. Kd3 {[%emt 0:00:32]} Kc6 {[%emt 0:00:21]} 46. Kc3 {[%emt 0:00:11]} 0-1

[Event "EYCC Open-U10 2019"]
[Site "Bratislava"]
[Date "2019.08.06"]
[Round "5.23"]
[White "Yonal, Timur"]
[Black "Jaakkola, Niklas"]
[Result "1-0"]
[ECO "B32"]
[WhiteElo "1512"]
[BlackElo "1587"]
[Annotator "NA"]
[PlyCount "55"]
[EventDate "2019.08.02"]
[EventType "swiss"]
[EventCountry "SVK"]
[SourceTitle "playchess.com"]
[Source "ChessBase"]
[SourceQuality "1"]
[TimeControl "40/5400+30:1800+30"]

1. e4 {[%emt 0:00:20]} c5 {[%emt 0:00:00]} 2. Nf3 {[%emt 0:00:05]} Nc6 {[%emt 0:00:19]} 3. d4 {[%emt 0:00:06]} cxd4 {[%emt 0:00:33]} 4. Nxd4 {[%emt 0:00:04]} e5 {[%emt 0:00:20]} 5. Nb5 {[%emt 0:00:07]} d6 {[%emt 0:00:57]} 6. N1c3 {[%emt 0:00:23]} a6 {[%emt 0:00:14]} 7. Na3 {[%emt 0:00:05]} b5 {[%emt 0:00:33]} 8. Nd5 {[%emt 0:00:06]} Nge7 {[%emt 0:00:33]} 9. c4 {[%emt 0:00:14]} Nxd5 {[%emt 0:00:40]} 10. Qxd5 {[%emt 0:01:51]} Bd7 {[%emt 0:21:12]} 11. cxb5 {[%emt 0:07:55]} Nd4 {[%emt 0:01:27]} 12. bxa6 {[%emt 0:48:33]} Rc8 {[%emt 0:16:49]} 13. a7 {[%emt 0:26:56]} Bc6 {[%emt 0:19:33]} 14. Qc4 {[%emt 0:04:38]} Bxe4 {[%emt 0:05:47]} 15. Qb4 {[%emt 0:02:30]} Be7 {[%emt 0:09:02]} 16. Bb5+ {[%emt 0:01:39]} Nxb5 {[%emt 0:00:16]} 17. Qxe4 {[%emt 0:00:38]} Nxa7 {[%emt 0:02:14]} 18. O-O {[%emt 0:00:11]} O-O {[%emt 0:00:38]} 19. Be3 {[%emt 0:00:10]} Nc6 {[%emt 0:00:30]} 20. Rfd1 Qd7 {[%emt 0:16:17]} 21. Nc4 {[%emt 0:01:47]} Qe6 {[%emt 0:00:30]} 22. Nb6 {[%emt 0:00:18]} f5 {[%emt 0:00:45]} 23. Qa4 {[%emt 0:00:34]} Rc7 {[%emt 0:00:30]} 24. Rac1 {[%emt 0:00:08]} d5 {[%emt 0:00:50]} 25. Nxd5 {[%emt 0:00:27]} Rcc8 {[%emt 0:00:22]} 26. Rxc6 {[%emt 0:00:24]} Qd7 {[%emt 0:00:45]} 27. Nxe7+ {[%emt 0:00:52]} Qxe7 {[%emt 0:00:02]} 28. Qc4+ {[%emt 0:00:14]} 1-0

[Event "EYCC Open-U10 2019"]
[Site "Bratislava"]
[Date "2019.08.06"]
[Round "5.24"]
[White "Sommer, Justus"]
[Black "Gordeev, Denis"]
[Result "1/2-1/2"]
[ECO "B40"]
[WhiteElo "1671"]
[BlackElo "1467"]
[Annotator "NA"]
[PlyCount "75"]
[EventDate "2019.08.02"]
[EventType "swiss"]
[EventCountry "SVK"]
[SourceTitle "playchess.com"]
[Source "ChessBase"]
[SourceQuality "1"]
[TimeControl "40/5400+30:1800+30"]

1. e4 {[%emt 0:00:00]} c5 {[%emt 0:00:00]} 2. Nf3 {[%emt 0:00:06]} e6 {[%emt 0:00:11]} 3. c3 {[%emt 0:00:24]} d5 {[%emt 0:00:20]} 4. exd5 {[%emt 0:00:19]} Qxd5 {[%emt 0:00:14]} 5. d4 {[%emt 0:00:30]} Nf6 {[%emt 0:00:10]} 6. Na3 {[%emt 0:00:43]} Nc6 {[%emt 0:03:53]} 7. Nb5 {[%emt 0:02:13]} Qd8 {[%emt 0:00:24]} 8. dxc5 {[%emt 0:00:46]} Bxc5 {[%emt 0:00:45]} 9. Qxd8+ {[%emt 0:00:48]} Kxd8 {[%emt 0:00:08]} 10. Be2 {[%emt 0:02:27]} a6 {[%emt 0:02:15]} 11. Nbd4 {[%emt 0:00:38]} Bd7 {[%emt 0:03:24]} 12. Be3 {[%emt 0:03:26]} Nxd4 {[%emt 0:02:03]} 13. Nxd4 {[%emt 0:01:53]} Rc8 {[%emt 0:05:31]} 14. Rd1 {[%emt 0:08:12]} Nd5 {[%emt 0:03:14]} 15. Bc1 {[%emt 0:02:56]} Ke7 {[%emt 0:03:41]} 16. O-O {[%emt 0:04:18]} Rhd8 {[%emt 0:04:30]} 17. Bf3 {[%emt 0:03:44]} b5 {[%emt 0:01:47]} 18. Nb3 {[%emt 0:04:49]} Be8 {[%emt 0:06:55]} 19. Rfe1 {[%emt 0:06:17]} Kf8 {[%emt 0:01:59]} 20. Nxc5 {[%emt 0:02:43]} Rxc5 {[%emt 0:00:13]} 21. Rd4 {[%emt 0:12:06]} Rcc8 {[%emt 0:03:42]} 22. Red1 {[%emt 0:02:15]} Bc6 {[%emt 0:00:10]} 23. b3 {[%emt 0:03:49]} Ke8 {[%emt 0:02:14]} 24. c4 {[%emt 0:03:06]} bxc4 {[%emt 0:02:17]} 25. bxc4 {[%emt 0:01:24]} Nb4 {[%emt 0:01:15]} 26. Rxd8+ {[%emt 0:02:08]} Rxd8 {[%emt 0:00:07]} 27. Rxd8+ {[%emt 0:00:09]} Kxd8 {[%emt 0:00:10]} 28. Bxc6 {[%emt 0:01:04]} Nxc6 {[%emt 0:00:14]} 29. Bb2 {[%emt 0:04:26]} Na5 {[%emt 0:06:58]} 30. Bxg7 {[%emt 0:01:20]} Nxc4 {[%emt 0:00:07]} 31. Kf1 {[%emt 0:01:23]} Kd7 {[%emt 0:01:20]} 32. Ke2 {[%emt 0:01:36]} Kc6 {[%emt 0:00:28]} 33. Kd3 {[%emt 0:01:31]} Kd5 {[%emt 0:00:22]} 34. f3 {[%emt 0:01:24]} f5 {[%emt 0:02:56]} 35. f4 {[%emt 0:02:41]} Nd6 {[%emt 0:02:05]} 36. h3 {[%emt 0:04:47]} h5 {[%emt 0:00:34]} 37. Bf8 {[%emt 0:02:38]} Ne4 {[%emt 0:03:18]} 38. Be7 1/2-1/2